bitfinex/quotes_ETHUSD_20251118
["timestamp","ask_amount","ask_price","bid_price","bid_amount"]
[1763424718726,0.1972,3045.3,3044.6,0.001]
[1763424719477,0.6848,3045.3,3044.7,0.03284395]
[1763424720472,0.6848,3045.3,3044.6,0.03384503]
[1763424720766,0.6848,3045.3,3044.6,0.001]
[1763424720968,0.1936,3046.0,3044.6,0.48594503]
[1763424720969,0.4876,3045.7,3044.6,0.48594503]
[1763424722147,0.6812,3046.0,3044.6,0.48594503]
[1763424722767,0.4876,3045.9,3044.6,0.48594503]
[1763424723761,0.1936,3046.0,3044.6,0.48594503]
[1763424724165,0.1936,3046.0,3044.7,0.28314946]
[1763424724344,0.1936,3046.0,3044.8,0.03284287]
[1763424724670,0.1936,3046.0,3044.8,0.48494287]
[1763424725676,0.4896,3046.2,3044.8,0.48494287]
[1763424725886,0.4896,3046.2,3044.8,2.82949246]
[1763424726033,0.4896,3046.2,3044.9,0.42132346]
[1763424726238,0.4896,3046.2,3045.0,0.53024072]
[1763424726652,0.4896,3046.2,3045.1,0.1194]
[1763424726951,0.4896,3046.2,3045.2,0.03283856]
[1763424727140,0.4896,3046.2,3045.2,0.53023856]
[1763424728441,0.4896,3046.2,3046.1,0.477]
[1763424728442,0.002,3046.2,3046.1,0.477]
[1763424728662,0.4692,3046.2,3045.6,0.4974]
[1763424728854,0.4692,3046.2,3045.7,0.03283317]
[1763424729555,0.9302,3046.2,3045.6,0.4974]
[1763424731776,0.4692,3046.2,3045.2,0.4974]
[1763424731961,0.4672,3045.7,3045.2,0.44730462]
[1763424732681,0.0212,3045.3,3044.9,1.3283161]
[1763424732883,0.4628,3045.2,3044.5,2.34554959]
[1763424733103,0.461,3045.7,3044.7,0.4974]
[1763424733397,0.461,3045.7,3045.1,0.477]
[1763424733572,0.461,3045.7,3044.6,2.34554959]
[1763424733772,0.461,3045.7,3044.6,2.87579462]
[1763424733962,0.461,3045.7,3044.6,3.25417335]
[1763424734774,0.461,3045.7,3044.7,0.4974]
[1763424735091,0.461,3045.7,3044.8,0.03284287]
[1763424736267,0.461,3045.7,3044.8,2.37739246]
[1763424736904,0.461,3045.7,3044.8,2.87479246]
[1763424737073,0.461,3045.7,3044.8,3.20020958]
[1763424737476,0.6437,3045.9,3044.9,0.4974]
[1763424737805,0.002,3046.0,3045.8,0.5872]
[1763424737970,0.002,3046.0,3045.9,0.477]
[1763424738166,0.002,3046.0,3045.9,0.50983101]
[1763424738981,0.002,3046.0,3045.9,1.35386907]
[1763424739213,0.002,3046.0,3045.7,2.34454959]
[1763424739214,0.4676,3046.0,3045.7,2.34454959]
[1763424739418,0.4676,3046.0,3045.5,2.34454959]
[1763424739419,0.4656,3045.8,3045.5,2.34454959]
[1763424739709,0.1824,3045.9,3045.1,2.45864959]
[1763424739912,0.6438,3045.9,3045.2,2.34454959]
[1763424740086,0.1824,3045.9,3045.2,2.84234959]
[1763424740607,0.1824,3045.9,3045.2,3.13799455]
[1763424740800,0.1824,3045.9,3045.3,0.4978]
[1763424741290,0.1824,3045.9,3045.3,2.84234959]
[1763424741686,0.6438,3045.9,3045.2,2.64019455]
[1763424741869,0.6438,3045.9,3045.2,2.34454959]
[1763424743516,0.6438,3045.9,3045.3,0.03283748]
[1763424743720,0.002,3046.0,3045.3,0.53063748]
[1763424743920,0.002,3046.0,3045.3,2.87518707]
[1763424744084,0.002,3046.0,3045.4,0.90699264]
[1763424744283,0.002,3046.0,3045.5,0.4110533]
[1763424744719,0.002,3046.0,3045.5,0.9088533]
[1763424746992,0.002,3046.0,3045.5,3.25340289]
[1763424747191,0.002,3046.0,3045.5,2.75560289]
[1763424747419,0.002,3046.0,3045.6,0.4978]
[1763424747910,0.4634,3046.0,3045.5,2.75560289]
[1763424748115,0.4634,3046.0,3045.6,0.27556029]
[1763424749326,0.4656,3045.7,3045.5,2.34454959]
[1763424749522,0.0227,3045.6,3045.5,2.34454959]
[1763424749893,0.4841,3045.6,3045.5,2.34454959]
[1763424750324,0.0227,3045.6,3045.5,2.34454959]
[1763424750822,0.4614,3045.8,3045.5,2.34454959]
[1763424751120,0.4614,3045.8,3045.5,2.57900455]
[1763424751424,0.4614,3045.8,3045.6,2.34454959]
[1763424751923,0.4656,3045.7,3045.6,2.34454959]
[1763424752823,0.002,3046.0,3045.6,2.80454959]
[1763424753002,0.002,3046.0,3045.6,3.33518384]
[1763424753201,0.002,3046.0,3045.7,2.70151347]
[1763424753404,0.002,3046.0,3045.8,2.37738168]
[1763424754127,0.002,3046.0,3045.7,0.85476388]
[1763424754128,0.002,3046.0,3045.9,2.34454959]
[1763424754499,0.4676,3046.0,3045.9,2.34454959]
[1763424755030,0.929,3046.0,3045.8,2.34454959]
[1763424755191,0.0227,3045.9,3045.8,2.34454959]
[1763424755524,0.4796,3045.9,3045.8,1.87874959]
[1763424755726,0.0271,3045.1,3045.0,2.3449304]
[1763424755927,0.4562833,3045.1,3045.0,2.61206515]
[1763424756129,0.4562833,3045.1,3044.8,0.001]
[1763424756304,0.1526,3044.9,3044.8,0.001]
[1763424756503,0.2491,3044.9,3044.8,0.001]
[1763424756812,0.6981,3044.9,3044.8,0.001]
[1763424759265,0.1526,3044.9,3044.8,0.001]
[1763424759437,0.7017,3044.9,3044.8,0.001]
[1763424769164,0.6071,3044.9,3044.8,0.001]
[1763424769369,0.0946,3045.3,3044.8,0.001]
[1763424769531,0.4509,3044.9,3044.8,0.001]
[1763424769942,0.6035,3044.9,3044.8,0.001]
[1763424771263,0.7017,3044.9,3044.8,0.001]
[1763424773235,0.6035,3044.9,3044.8,0.001]
[1763424773672,0.7017,3044.9,3044.8,0.001]
[1763424775634,0.6035,3044.9,3044.8,0.001]
[1763424779774,0.7017,3044.9,3044.8,0.001]
[1763424780236,1.107204,3044.9,3044.8,0.001]
[1763424780437,0.405504,3044.8,3044.6,0.001]
[1763424780663,0.405504,3044.6,3044.5,0.001]
[1763424780864,0.488104,3044.6,3044.5,0.001]
[1763424781074,0.949904,3044.6,3044.5,0.001]
[1763424781465,0.98280754,3044.6,3044.5,0.001]
[1763424781778,1.33081336,3044.6,3044.5,0.001]
[1763424781977,1.52534272,3044.6,3044.5,0.001]
[1763424782143,1.55824626,3044.6,3044.5,0.001]
[1763424782455,1.52534272,3044.6,3044.5,0.001]
[1763424783258,1.55824626,3044.6,3044.5,0.001]
[1763424783461,1.52534272,3044.6,3044.5,0.001]
[1763424783862,1.55824626,3044.6,3044.5,0.001]
[1763424784883,1.14443336,3044.6,3044.5,0.001]
[1763424785089,0.949904,3044.6,3044.5,0.001]
[1763424788054,0.98280754,3044.6,3044.5,0.001]
[1763424789496,1.3637169,3044.6,3044.5,0.001]
[1763424790809,0.98280754,3044.6,3044.5,0.001]
[1763424790959,0.405504,3044.1,3044.0,0.0003]
[1763424791156,0.0853,3044.1,3044.0,0.0003]
[1763424791587,0.944304,3044.1,3044.0,0.0003]
[1763424792061,0.888404,3044.0,3043.6,0.001]
[1763424792263,0.465304,3043.7,3043.6,0.001]
[1763424792705,0.97690754,3043.7,3043.6,0.001]
[1763424793807,0.944004,3043.7,3043.6,0.001]
[1763424797178,0.4787,3044.2,3043.6,0.4649]
[1763424797690,0.405504,3044.1,3043.6,0.4649]
[1763424798193,0.4922,3044.0,3043.6,0.001]
[1763424798385,0.0506,3043.7,3043.6,0.001]
[1763424799120,0.4922,3044.0,3043.6,0.001]
[1763424799262,0.405504,3043.9,3043.6,0.001]
[1763424799866,0.0506,3043.7,3043.6,0.001]
[1763424800065,0.456104,3043.7,3043.6,0.001]
[1763424800599,0.405504,3043.7,3043.6,0.001]
[1763424801180,0.456104,3043.7,3043.6,0.001]
[1763424801684,0.33310705,3044.6,3043.6,0.9527]
[1763424801884,0.7175307,3044.6,3043.6,0.9527]
[1763424802091,0.4922,3044.7,3043.7,0.4989]
[1763424802396,0.33310705,3045.4,3044.6,0.4528]
[1763424802397,0.4922,3045.4,3044.6,0.4528]
[1763424802583,0.002,3045.5,3044.3,0.1846]
[1763424802584,0.4942,3045.1,3044.3,0.1846]
[1763424802990,0.4942,3045.1,3044.3,0.6835]
[1763424803177,0.405504,3045.0,3044.4,0.4989]
[1763424804498,0.405504,3044.8,3044.3,0.1846]
[1763424804902,0.405504,3044.8,3044.3,0.6835]
[1763424805106,0.405504,3044.8,3044.4,0.4989]
[1763424806394,0.405504,3044.8,3043.7,0.1846]
[1763424806395,0.0572,3044.5,3043.7,0.1846]
[1763424806704,0.4879,3044.7,3043.6,0.4999]
[1763424806705,0.405504,3044.3,3043.6,0.001]
[1763424807088,0.405504,3044.1,3043.6,0.001]
[1763424807488,0.897704,3044.1,3043.6,0.001]
[1763424807695,0.03290354,3044.0,3043.6,0.001]
[1763424807897,0.897704,3044.1,3043.6,0.001]
[1763424808404,0.405504,3044.1,3043.6,0.001]
[1763424808604,0.4922,3044.4,3043.6,0.4999]
[1763424809214,0.897704,3044.7,3043.6,0.4999]
[1763424809577,0.405504,3044.5,3043.6,0.4999]
[1763424809995,0.4922,3044.6,3043.6,0.4999]
[1763424810212,0.405504,3044.5,3043.6,0.4999]
[1763424810385,0.405504,3044.8,3043.6,0.4999]
[1763424810587,1.20574905,3044.8,3043.6,0.4999]
[1763424810787,0.897704,3044.8,3043.6,0.4999]
[1763424811479,0.897704,3044.8,3043.6,0.001]
[1763424811480,0.405504,3044.6,3043.6,0.001]
[1763424811680,0.03290354,3044.5,3043.6,0.001]
[1763424811879,0.405504,3044.4,3043.6,0.001]
[1763424812087,0.405504,3044.4,3043.6,0.4999]
[1763424818311,0.888704,3044.8,3043.6,0.4999]
[1763424818816,0.4832,3044.7,3043.6,0.001]
[1763424819023,0.0661,3043.7,3043.6,0.001]
[1763424819221,0.4832,3044.7,3043.6,0.492]
[1763424819532,0.405504,3044.5,3043.6,0.9759]
[1763424819906,0.405504,3044.8,3043.6,0.9759]
[1763424820238,0.405504,3044.4,3043.6,0.4849]
[1763424820432,0.405504,3044.4,3043.7,0.491]
[1763424822219,0.4832,3044.3,3043.6,0.001]
[1763424822414,0.51610354,3044.3,3043.6,0.001]
[1763424822903,0.51610354,3044.3,3043.6,0.492]
[1763424824842,0.405504,3044.2,3043.6,0.492]
[1763424825038,0.03290354,3044.1,3043.6,0.492]
[1763424826242,0.0661,3043.7,3043.6,0.001]
[1763424826441,0.405504,3044.0,3043.6,0.001]
[1763424826629,0.405504,3044.0,3043.6,0.4849]
[1763424826831,0.002,3044.4,3043.9,0.4839]
[1763424827076,0.002,3044.4,3044.0,0.4839]
[1763424827230,0.002,3044.4,3043.7,0.491]
[1763424827433,0.002,3044.4,3044.3,0.4839]
[1763424827635,0.002,3044.4,3044.3,0.6805]
[1763424827827,0.002,3044.4,3044.3,1.1715]
[1763424829137,0.002,3044.4,3044.3,0.6805]
[1763424830166,0.002,3044.4,3044.3,1.1715]
[1763424832678,0.002,3044.4,3044.3,0.6805]
[1763424832845,0.002,3044.4,3044.3,0.4839]
[1763424833041,0.002,3044.4,3044.1,0.1966]
[1763424833344,0.002,3044.4,3044.3,0.4839]
[1763424833551,0.002,3044.4,3044.1,0.6876]
[1763424834888,0.002,3044.4,3044.3,0.4839]
[1763424835280,0.002,3044.4,3044.3,0.9749]
[1763424835681,0.002,3044.4,3044.3,0.4839]
[1763424836974,0.0681,3044.4,3043.9,0.491]
[1763424837384,0.03290354,3044.3,3043.9,0.491]
[1763424837585,0.0681,3044.4,3043.9,0.491]
[1763424837770,0.002,3044.4,3043.9,0.491]
[1763424840190,0.002,3044.4,3044.3,0.4839]
[1763424840390,0.0681,3044.4,3043.9,0.491]
[1763424840992,0.002,3044.4,3043.9,0.491]
[1763424841200,0.002,3044.4,3044.3,0.4839]
[1763424841594,0.002,3044.4,3043.9,0.491]
[1763424841781,0.002,3044.4,3044.1,0.1966]
[1763424841985,0.002,3044.4,3043.6,0.001]
[1763424842297,0.002,3044.4,3043.7,0.491]
[1763424842493,0.002,3044.4,3043.8,0.001]
[1763424842880,0.03490354,3044.4,3043.8,0.492]
[1763424843083,0.405504,3044.3,3043.8,0.001]
[1763424843396,0.03290354,3044.2,3043.8,0.001]
[1763424843594,0.0661,3043.9,3043.8,0.001]
[1763424844671,0.405504,3044.2,3043.8,0.001]
[1763424845067,0.002,3044.4,3043.8,0.001]
[1763424845406,0.002,3044.4,3043.8,0.492]
[1763424845709,0.0661,3043.9,3043.8,0.001]
[1763424847770,0.927504,3043.9,3043.8,0.001]
[1763424848399,0.471604,3043.9,3043.8,0.001]
[1763424848598,0.405504,3043.9,3043.8,0.4951]
[1763424848817,0.405504,3043.9,3043.8,0.9912]
[1763424849191,0.405504,3043.9,3043.8,0.4951]
[1763424849636,0.405504,3043.9,3043.8,0.001]
[1763424849776,0.498704,3043.9,3043.8,0.001]
[1763424850104,0.951004,3043.9,3043.8,0.001]
[1763424850812,0.002,3044.4,3043.8,0.9912]
[1763424851283,0.002,3044.4,3043.9,0.4961]
[1763424852085,0.405504,3044.3,3043.9,0.4961]
[1763424852280,0.405504,3043.9,3043.8,0.001]
[1763424852492,0.03290354,3044.2,3043.8,0.001]
[1763424852493,0.405504,3044.2,3043.8,0.001]
[1763424852684,0.861404,3044.2,3043.8,0.001]
[1763424852883,0.002,3044.4,3043.8,0.001]
[1763424853202,0.498704,3043.9,3043.8,0.001]
[1763424853612,0.002,3044.4,3044.1,0.6788]
[1763424853823,0.002,3044.8,3044.3,0.4941]
[1763424854121,0.002,3044.8,3044.7,0.4941]
[1763424854498,0.002,3044.8,3044.7,0.9902]
[1763424858105,0.002,3044.8,3044.7,1.12206675]
[1763424859528,0.002,3044.8,3044.7,0.62596675]
[1763424860001,0.002,3044.8,3044.7,0.13186675]
[1763424860198,0.002,3044.8,3044.7,0.59116675]
[1763424861022,0.002,3044.8,3044.7,1.06456675]
[1763424861631,0.002,3044.8,3044.7,0.59116675]
[1763424862042,0.002,3044.8,3044.7,1.06456675]
[1763424864701,0.002,3044.8,3044.7,0.13186675]
[1763424865101,0.1097,3044.8,3044.3,0.4734]
[1763424865554,0.002,3044.8,3044.7,0.4593]
[1763424865903,0.002,3044.8,3044.7,0.9327]
[1763424866138,0.002,3044.8,3044.7,1.0645724]
[1763424869619,0.17392446,3044.8,3044.7,0.5911724]
[1763424869953,0.71912446,3044.8,3044.1,0.6581]
[1763424870247,0.24712446,3044.8,3044.5,0.17392446]
[1763424870836,0.24712446,3044.8,3043.8,0.001]
[1763424870837,0.0732,3044.6,3043.8,0.001]
[1763424871019,0.0732,3043.9,3043.8,0.001]
[1763424871226,0.405504,3044.6,3043.8,0.9323]
[1763424871427,0.405504,3044.7,3043.8,1.4057]
[1763424871626,0.405504,3044.7,3043.8,0.9337]
[1763424871948,0.881604,3044.7,3043.8,0.9337]
[1763424872176,0.4761,3044.6,3043.8,0.9337]
[1763424872450,0.405504,3044.5,3043.8,1.5926]
[1763424874264,0.405504,3044.7,3044.4,0.4593]
[1763424874433,0.405504,3044.7,3043.9,0.4734]
[1763424874632,0.881604,3044.7,3043.9,0.4734]
[1763424875224,0.0732,3044.0,3043.8,0.6599]
[1763424875416,0.472,3044.6,3043.8,0.001]
[1763424875631,0.0544,3044.5,3043.9,0.472]
[1763424877057,0.4544,3044.0,3043.9,0.472]
[1763424877362,0.4544,3044.0,3043.8,0.001]
[1763424877572,0.405504,3043.8,3043.6,0.001]
[1763424877729,0.028,3043.7,3043.6,0.001]
[1763424877926,0.509,3043.7,3043.6,0.001]
[1763424878657,0.914504,3043.7,3043.6,0.001]
[1763424880367,0.028,3043.7,3043.6,0.001]
[1763424881172,0.481,3044.3,3043.6,0.001]
[1763424881342,0.405504,3044.2,3043.6,0.4629]
[1763424881866,0.405504,3044.0,3043.6,0.001]
[1763424882235,0.405504,3043.9,3043.6,0.001]
[1763424883165,0.0683,3043.7,3043.6,0.001]
[1763424883587,0.882304,3043.9,3043.6,0.001]
[1763424883878,0.405504,3044.0,3043.6,0.001]
[1763424884247,0.481,3044.2,3043.6,0.001]
[1763424884448,0.886504,3044.4,3043.6,0.4982]
[1763424884649,6.35,3044.6,3043.6,0.4982]
[1763424884650,0.17934966,3044.3,3043.6,0.4982]
[1763424884876,6.35,3044.6,3043.6,0.4982]
[1763424884877,0.481,3044.6,3043.6,0.4982]
[1763424885756,0.1828,3044.9,3043.7,0.03285474]
[1763424885952,0.65492446,3044.8,3043.8,0.4972]
[1763424886175,0.65492446,3044.8,3043.9,0.03285259]
[1763424886384,0.17392446,3044.8,3044.7,0.4619]
[1763424886701,0.17392446,3044.8,3044.7,0.6532]
[1763424886850,0.17392446,3044.8,3044.7,0.4619]
[1763424887955,0.17392446,3044.8,3044.7,0.9591]
[1763424888963,0.17392446,3044.8,3044.7,0.4619]
[1763424890460,0.17392446,3044.8,3044.7,0.9591]
[1763424892794,0.62832446,3044.8,3043.6,0.001]
[1763424893012,0.62832446,3044.8,3044.3,0.17392446]
[1763424893187,0.17392446,3044.8,3044.7,0.4619]
[1763424893567,0.24232446,3044.8,3044.2,0.1913]
[1763424893771,0.24232446,3044.8,3044.3,0.17392446]
[1763424894180,0.24232446,3044.8,3044.4,0.4972]
[1763424894563,0.17392446,3044.8,3044.7,0.4619]
[1763424895614,0.24232446,3044.8,3044.3,0.17392446]
[1763424895920,0.24232446,3044.8,3044.3,0.67112446]
[1763424896279,0.24232446,3044.8,3044.4,0.4972]
[1763424896809,0.17392446,3044.8,3044.4,0.4972]
[1763424897918,0.17392446,3044.8,3044.3,0.17392446]
[1763424898220,0.17392446,3044.8,3044.3,0.4972]
[1763424899820,0.17392446,3044.8,3044.7,0.4619]
[1763424900309,0.17392446,3044.8,3044.7,0.9591]
[1763424900823,0.17392446,3044.8,3044.7,1.4379]
[1763424901723,0.002,3045.1,3044.8,0.9591]
[1763424901937,0.002,3045.1,3045.0,0.4619]
[1763424902141,0.002,3045.1,3045.0,0.9591]
[1763424902558,0.002,3045.3,3045.0,0.9591]
[1763424902759,0.002,3045.8,3045.2,0.4619]
[1763424902926,0.002,3045.8,3045.5,0.4619]
[1763424903126,0.002,3045.8,3045.7,0.4619]
[1763424904530,0.002,3045.8,3045.7,0.9591]
[1763424906970,0.002,3045.8,3045.7,0.95]
[1763424908159,0.002,3046.2,3045.7,0.95]
[1763424908366,0.002,3046.2,3045.8,0.95]
[1763424911951,0.002,3046.2,3045.8,0.98283209]
[1763424912330,0.002,3046.2,3045.8,0.95]
[1763424914270,0.002,3046.2,3045.8,0.4775]
[1763424914788,0.002,3046.2,3045.5,0.4735]
[1763424915353,0.002,3046.2,3045.8,0.4775]
[1763424915751,0.002,3046.2,3045.8,0.95]
[1763424916659,0.002,3046.2,3045.5,0.001]
[1763424916660,0.2492,3045.9,3045.5,0.001]
[1763424917360,0.0972,3045.9,3045.5,0.001]
[1763424919094,0.4503,3045.6,3045.5,0.001]
[1763424919570,0.549,3045.6,3045.5,0.001]
[1763424921086,0.549,3045.6,3045.2,0.001]
[1763424921290,0.0539,3045.3,3045.2,0.001]
[1763424921683,0.545,3045.3,3045.2,0.001]
[1763424924691,0.0539,3045.3,3045.2,0.001]
[1763424924860,0.545,3045.3,3045.2,0.001]
[1763424928738,0.0539,3045.3,3045.2,0.001]
[1763424928885,0.0583,3045.3,3045.2,0.001]
[1763424929897,0.4911,3045.7,3045.2,0.001]
[1763424930494,0.0583,3045.3,3045.2,0.001]
[1763424931309,0.1548,3045.8,3045.2,0.4689]
[1763424931613,0.4836,3045.3,3045.2,0.001]
[1763424932127,0.0658,3045.7,3045.2,0.001]
[1763424932294,0.1548,3045.8,3045.2,0.001]
[1763424932623,0.0539,3045.3,3045.2,0.001]
[1763424933712,0.545,3045.3,3045.2,0.001]
[1763424939551,0.950504,3045.3,3045.2,0.001]
[1763424940614,0.950504,3045.3,3045.2,0.071]
[1763424944424,0.459404,3045.3,3045.2,0.071]
[1763424944626,0.0539,3045.3,3045.2,0.071]
[1763424945057,0.1548,3045.8,3045.2,0.5334]
[1763424945355,0.6373,3045.8,3045.2,0.5334]
[1763424945555,0.405504,3045.7,3045.2,0.5334]
[1763424945762,0.405504,3045.7,3045.2,0.071]
[1763424946255,0.4825,3045.6,3045.2,0.071]
[1763424946756,0.002,3045.5,3045.2,0.071]
[1763424946929,0.002,3045.5,3045.3,0.4687]
[1763424947129,0.002,3045.5,3045.4,0.4624]
[1763424947926,0.002,3045.5,3045.2,0.071]
[1763424947927,0.5006,3045.5,3045.2,0.071]
[1763424948440,0.002,3045.5,3045.4,0.4624]
[1763424949940,0.002,3045.5,3045.2,0.5397]
[1763424950157,0.002,3045.5,3045.2,0.071]
[1763424951975,0.002,3045.5,3045.2,0.5397]
[1763424953347,0.002,3045.5,3045.4,0.4624]
[1763424954959,0.002,3045.5,3045.4,0.9311]
[1763424958192,0.002,3045.5,3045.4,0.4624]
[1763424958814,0.002,3045.5,3045.2,0.071]
[1763424959099,0.002,3045.5,3045.4,0.4624]
[1763424959806,0.0688,3045.5,3045.2,0.071]
[1763424960381,0.002,3045.5,3045.2,0.071]
[1763424960611,0.4986,3045.3,3045.2,0.071]
[1763424960814,0.4986,3045.3,3045.1,0.001]
[1763424960971,0.4986,3045.3,3044.9,0.001]
[1763424960972,1.67711411,3045.2,3044.9,0.001]
[1763424961171,0.899704,3045.0,3044.9,0.001]
[1763424961485,0.899704,3045.0,3044.5,0.001]
[1763424961486,0.81898836,3044.9,3044.5,0.001]
[1763424961799,0.405504,3044.5,3043.6,0.001]
[1763424961999,0.72221011,3044.4,3043.6,0.001]
[1763424962202,0.405504,3044.2,3043.6,0.001]
[1763424962534,0.472304,3043.9,3043.6,0.001]
[1763424962874,0.950604,3043.9,3043.6,0.001]
[1763424964271,1.36408836,3043.9,3043.6,0.001]
[1763424964510,0.472304,3043.7,3043.6,0.001]
[1763424964806,0.64914751,3043.7,3043.6,0.001]
[1763424964974,1.12744751,3043.7,3043.6,0.001]
[1763424966314,1.12744751,3043.7,3043.5,0.001]
[1763424966315,1.54093187,3043.7,3043.5,0.001]
[1763424966616,0.405504,3043.5,3043.4,0.001]
[1763424966778,0.74305759,3043.5,3043.4,0.001]
[1763424967320,0.493504,3043.5,3043.4,0.001]
[1763424967512,0.950904,3043.5,3043.4,0.001]
[1763424968811,0.950904,3043.5,3043.2,0.001]
[1763424969014,0.950904,3043.5,3042.9,0.001]
[1763424969015,0.088,3043.1,3042.9,0.001]
[1763424969218,0.405504,3042.9,3041.7,0.4678]
[1763424969420,0.1771,3041.8,3041.0,0.21092516]
[1763424969714,0.1771,3041.8,3040.6,0.001]
[1763424969715,0.405504,3041.7,3040.6,0.4688]
[1763424970040,0.859304,3041.7,3040.6,0.4688]
[1763424970217,0.405504,3042.0,3040.7,0.03288716]
[1763424970377,0.405504,3042.0,3040.6,0.50168824]
[1763424970780,0.405504,3042.0,3040.6,0.4688]
[1763424971015,0.866604,3042.0,3040.6,0.4688]
[1763424971225,0.405504,3042.0,3040.6,0.4688]
[1763424971785,0.866604,3042.0,3040.6,0.4688]
[1763424972407,0.405504,3042.0,3040.6,0.4688]
[1763424972717,0.405504,3041.8,3040.6,0.4688]
[1763424973485,0.4611,3041.8,3040.6,0.4688]
[1763424974300,0.1771,3042.4,3041.7,0.6783]
[1763424974505,0.4611,3043.0,3042.3,0.6783]
[1763424974709,1.83829462,3044.6,3042.3,0.6783]
[1763424974710,0.4611,3043.4,3042.4,0.48]
[1763424974908,0.4611,3043.4,3042.4,0.9478]
[1763424975432,0.4611,3043.4,3042.3,0.1983]
[1763424975433,0.4611,3043.2,3042.3,0.1983]
[1763424975607,0.41348436,3043.4,3042.3,0.1983]
[1763424975807,0.405504,3043.0,3042.3,0.1983]
[1763424976531,0.405504,3043.0,3042.3,0.6661]
[1763424978635,0.405504,3043.0,3042.3,0.1983]
[1763424978835,0.405504,3043.0,3042.4,0.496]
[1763424979550,0.405504,3043.0,3042.3,0.1983]
[1763424979703,0.883304,3043.0,3042.1,0.496]
[1763424979902,0.883304,3043.0,3041.7,0.1983]
[1763424980103,0.883304,3043.0,3042.3,0.001]
[1763424980851,0.405504,3043.5,3042.3,0.001]
[1763424981147,0.405504,3043.5,3042.9,0.4889]
[1763424981369,0.4778,3043.4,3042.3,0.497]
[1763424981645,0.4778,3043.4,3042.4,0.496]
[1763424982824,0.4778,3043.4,3042.3,0.001]
[1763424983024,0.405504,3043.3,3042.3,0.001]
[1763424983405,0.4778,3043.2,3042.3,0.001]
[1763424984229,0.4778,3043.2,3042.3,0.497]
[1763424985249,0.405504,3043.1,3042.3,0.497]
[1763424987549,0.4778,3043.1,3042.3,0.001]
[1763424987756,0.405504,3043.0,3042.3,0.001]
[1763424988523,0.1771,3042.9,3042.3,0.001]
[1763424989034,0.405504,3043.3,3042.3,0.001]
[1763424989220,0.405504,3043.3,3042.3,0.497]
[1763424990748,0.40014678,3043.9,3043.2,0.6853]
[1763424990956,0.48438127,3044.0,3043.6,0.4889]
[1763424991174,0.002,3044.1,3043.6,0.4889]
[1763424991457,0.002,3044.1,3043.6,0.9849]
[1763425000263,0.002,3044.1,3043.6,0.4957]
[1763425000463,0.002,3044.1,3043.6,0.9684]
[1763425000666,0.002,3044.1,3043.6,1.00125582]
[1763425000867,0.002,3044.1,3044.0,0.4957]
[1763425001231,0.002,3044.1,3044.0,0.9684]
[1763425003343,0.002,3044.1,3044.0,0.4957]
[1763425003548,0.002,3044.1,3044.0,0.9684]
[1763425004553,0.002,3044.1,3044.0,0.4957]
[1763425005164,0.5472,3044.1,3043.3,0.4727]
[1763425005478,0.002,3044.1,3044.0,0.4957]
[1763425005779,0.002,3044.1,3044.0,0.9684]
[1763425006176,0.002,3044.1,3044.0,0.4957]
[1763425006769,0.002,3044.1,3043.2,0.1964]
[1763425006770,0.0771,3044.1,3043.2,0.1964]
[1763425006975,0.0771,3044.1,3043.4,0.4727]
[1763425007956,0.002,3044.1,3043.4,0.4727]
[1763425011253,0.002,3044.1,3044.0,0.4957]
[1763425011658,0.002,3044.1,3044.0,0.9684]
[1763425017395,0.002,3044.1,3044.0,0.4957]
[1763425018290,0.002,3044.1,3043.6,0.001]
[1763425018291,0.5472,3044.1,3043.6,0.001]
[1763425018669,0.0047,3043.7,3043.6,0.001]
[1763425019086,0.6559,3043.7,3043.6,0.001]
[1763425019915,0.82783217,3043.7,3043.6,0.001]
[1763425020944,0.405504,3043.6,3043.3,0.001]
[1763425021240,0.0705,3043.1,3042.2,0.03287094]
[1763425021388,0.4741,3043.6,3042.4,0.03286878]
[1763425021595,0.4741,3043.5,3042.4,0.03286878]
[1763425022834,0.34903217,3043.7,3042.5,0.4727]
[1763425022993,0.82313217,3043.7,3042.6,0.03286662]
[1763425023330,0.82313217,3043.7,3042.5,0.4727]
[1763425023488,0.34903217,3043.7,3042.5,0.4727]
[1763425023694,0.4741,3043.6,3042.6,0.03286662]
[1763425023999,0.34903217,3043.7,3042.6,0.03286662]
[1763425024199,0.17193217,3043.7,3043.6,0.6943]
[1763425024395,0.17193217,3043.7,3043.6,1.167]
[1763425024598,0.002,3044.1,3043.6,1.167]
[1763425024792,0.002,3044.1,3044.0,0.4957]
[1763425025205,0.002,3044.1,3044.0,0.9684]
[1763425025406,0.002,3044.1,3044.0,0.4957]
[1763425025823,0.002,3044.1,3044.0,0.975]
[1763425027422,0.002,3044.1,3044.0,0.4957]
[1763425027635,0.002,3044.1,3043.6,2.54115252]
[1763425027636,0.002,3044.1,3043.6,0.6779]
[1763425028242,0.002,3044.1,3043.6,0.1986]
[1763425028541,0.002,3044.1,3044.0,0.454]